bitfinex/quotes_ETHUSD_20230113
["timestamp","ask_amount","ask_price","bid_price","bid_amount"]
[1673597285520,0.57954303,1408.1,1408.0,30.96377183]
[1673597287763,0.57954303,1408.1,1408.0,27.68015483]
[1673597287969,1.73207927,1408.1,1408.0,12.41322287]
[1673597288217,1.73207927,1408.1,1408.0,1.70462015]
[1673597288507,3.32863334,1408.1,1407.9,21.37347]
[1673597288696,3.24054821,1408.1,1408.0,7.10227]
[1673597288916,3.32863865,1408.1,1408.0,7.10227]
[1673597289728,2.26418754,1408.1,1408.0,7.10227]
[1673597289957,2.26418754,1408.1,1407.9,21.37348]
[1673597290169,5.71197179,1408.0,1407.9,7.10243]
[1673597290377,4.74664451,1408.0,1407.8,14.2722]
[1673597290606,1.15218622,1407.9,1407.8,14.20611]
[1673597290773,1.0640861,1407.9,1407.8,7.10303]
[1673597290989,1.15218625,1407.9,1407.8,7.10303]
[1673597291349,18.06203135,1408.0,1407.8,8.8241302]
[1673597291506,21.23723821,1408.0,1407.8,7.10303]
[1673597292356,19.64068414,1408.0,1407.8,7.10303]
[1673597293151,22.07662939,1408.0,1407.8,7.10303]
[1673597294172,20.48007532,1408.0,1407.8,7.10303]
[1673597294520,20.48007532,1408.0,1407.7,17.27323]
[1673597294839,3.11209363,1407.9,1407.7,14.20703]
[1673597295159,29.17889939,1408.0,1407.7,14.20703]
[1673597295314,38.65649939,1408.0,1407.7,14.20703]
[1673597296440,43.03391355,1408.0,1407.7,7.1035]
[1673597296633,4.30339136,1407.9,1407.7,7.1035]
[1673597296787,4.30339136,1407.9,1407.7,7.10073321]
[1673597305213,36.22055414,1408.0,1407.7,7.10073321]
[1673597308999,36.87356137,1408.0,1407.7,7.10073321]
[1673597312305,43.97604137,1408.0,1407.7,7.10073321]
[1673597313044,36.87356137,1408.0,1407.7,7.10073321]
[1673597313252,24.69260723,1408.0,1407.7,24.91462593]
[1673597314560,25.75669333,1408.0,1407.7,24.91462593]
[1673597314765,25.75669333,1408.0,1407.7,10.70706593]
[1673597315047,25.75669333,1408.0,1407.7,7.10073321]
[1673597315246,32.85906333,1408.0,1407.7,7.10073321]
[1673597315773,3.28590633,1407.9,1407.7,7.10073321]
[1673597315988,32.85906333,1408.0,1407.7,7.10073321]
[1673597316631,33.51231306,1408.0,1407.7,7.10073321]
[1673597320284,26.40994306,1408.0,1407.7,7.10073321]
[1673597320512,26.40994306,1408.0,1407.7,14.20451321]
[1673597320703,26.40994306,1408.0,1407.7,7.10073321]
[1673597322073,26.40994306,1408.0,1407.7,14.20451321]
[1673597322244,26.40994306,1408.0,1407.7,27.3532662]
[1673597323105,28.00649713,1408.0,1407.7,27.3532662]
[1673597326121,1.0640861,1407.9,1407.7,27.3532662]
[1673597326515,1.0640861,1407.9,1407.8,1.76197883]
[1673597326657,1.0640861,1407.9,1407.8,8.86525883]
[1673597328546,1.0640861,1407.9,1407.8,8.86186881]
[1673597329421,4.45519514,1407.9,1407.8,1.75858881]
[1673597330311,5.10844487,1407.9,1407.8,1.75858881]
[1673597330510,5.20744487,1407.9,1407.8,1.75858881]
[1673597333245,5.20444487,1407.9,1407.8,1.75858881]
[1673597333583,5.20744487,1407.9,1407.8,1.75858881]
[1673597334336,12.31021487,1407.9,1407.8,1.75858881]
[1673597334504,14.43412844,1407.9,1407.8,1.75858881]
[1673597335677,14.43112844,1407.9,1407.8,1.75858881]
[1673597335894,14.43412844,1407.9,1407.8,1.75858881]
[1673597336458,21.53689844,1407.9,1407.8,1.75858881]
[1673597349479,19.41298487,1407.9,1407.8,1.75858881]
[1673597349698,19.40998487,1407.9,1407.8,1.75858881]
[1673597349855,19.41298487,1407.9,1407.8,1.75858881]
[1673597350490,19.4099432,1407.9,1407.8,1.75858881]
[1673597351441,16.55130213,1407.9,1407.8,1.75858881]
[1673597357003,23.65407213,1407.9,1407.8,1.75858881]
[1673597358833,25.7779857,1407.9,1407.8,1.75858881]
[1673597359416,30.15174342,1407.9,1407.8,1.75858881]
[1673597359942,32.80596482,1407.9,1407.8,1.75858881]
[1673597360197,39.03792136,1407.9,1407.8,1.75858881]
[1673597361696,36.91400779,1407.9,1407.8,1.75858881]
[1673597361989,39.04291336,1407.9,1407.8,1.75858881]
[1673597362299,36.91400779,1407.9,1407.8,1.75858881]
[1673597363413,39.04278615,1407.9,1407.8,1.75858881]
[1673597363766,23.65705033,1407.9,1407.8,1.75858881]
[1673597365049,3.41312271,1407.9,1407.8,1.75858881]
[1673597365367,3.31412271,1407.9,1407.8,1.75858881]
[1673597369022,3.31412271,1407.9,1407.8,1.75597811]
[1673597370743,3.90290011,1407.9,1407.8,1.75597811]
[1673597371537,2.83851773,1407.9,1407.8,1.75597811]
[1673597375884,35.79751681,1407.9,1407.8,1.75597811]
[1673597376057,42.92087315,1407.9,1407.8,1.75597811]
[1673597376595,38.54391011,1407.9,1407.8,1.75597811]
[1673597377042,40.67314324,1407.9,1407.8,1.75597811]
[1673597377421,42.80236927,1407.9,1407.8,1.75597811]
[1673597377757,40.67314324,1407.9,1407.8,1.75597811]
[1673597382291,40.14754052,1407.9,1407.8,1.75597811]
[1673597382665,42.80176192,1407.9,1407.8,1.75597811]
[1673597385866,31.39848981,1407.9,1407.8,2.81837007]
[1673597386999,35.77661131,1407.9,1407.8,1.75597811]
[1673597387335,34.18052958,1407.9,1407.8,1.75597811]
[1673597387865,35.7761363,1407.9,1407.8,1.75597811]
[1673597388020,34.18052958,1407.9,1407.8,1.75597811]
[1673597391066,34.18052958,1407.9,1407.8,1.75212118]
[1673597391277,35.77604039,1407.9,1407.8,1.75212118]
[1673597392590,28.67327039,1407.9,1407.8,1.75212118]
[1673597395390,23.52933059,1407.9,1407.8,1.75212118]
[1673597395537,16.42656059,1407.9,1407.8,1.75212118]
[1673597400619,16.42653089,1407.9,1407.8,1.75212118]
[1673597400975,14.83104978,1407.9,1407.8,1.75212118]
[1673597401817,16.42644999,1407.9,1407.8,1.75212118]
[1673597405539,15.36142609,1407.9,1407.8,1.75212118]
[1673597406915,6.00983479,1407.9,1407.8,1.75212118]
[1673597407536,6.66286302,1407.9,1407.8,1.75212118]
[1673597407791,6.00983479,1407.9,1407.8,1.75212118]
[1673597407957,6.66287664,1407.9,1407.8,1.75212118]
[1673597408172,6.66286973,1407.9,1407.8,1.75212118]
[1673597408380,6.00983479,1407.9,1407.8,1.75212118]
[1673597412519,8.25828928,1407.9,1407.8,1.75212118]
[1673597412834,6.66288907,1407.9,1407.8,1.75212118]
[1673597413039,8.25828928,1407.9,1407.8,1.75212118]
[1673597413221,6.66288907,1407.9,1407.8,1.75212118]
[1673597413418,8.25828928,1407.9,1407.8,1.75212118]
[1673597414042,6.66288907,1407.9,1407.8,1.75212118]
[1673597414277,13.11260479,1407.9,1407.8,1.75212118]
[1673597414501,15.36105928,1407.9,1407.8,1.75212118]
[1673597414674,13.76565907,1407.9,1407.8,1.75212118]
[1673597414893,15.36105928,1407.9,1407.8,1.75212118]
[1673597416267,26.92520608,1407.9,1407.8,1.75212118]
[1673597416677,25.8616113,1407.9,1407.8,1.75212118]
[1673597416894,32.9643813,1407.9,1407.8,1.75212118]
[1673597419554,35.09299998,1407.9,1407.8,1.75212118]
[1673597420486,32.9643813,1407.9,1407.8,1.75212118]
[1673597420892,32.9613813,1407.9,1407.8,1.75212118]
[1673597421103,32.9643813,1407.9,1407.8,1.75212118]
[1673597421541,35.09299998,1407.9,1407.8,1.75212118]
[1673597423583,35.10756053,1407.9,1407.8,1.75212118]
[1673597426586,33.51216032,1407.9,1407.8,1.75212118]
[1673597426910,29.25369771,1407.9,1407.6,3.066]
[1673597427107,2.66124299,1407.8,1407.6,3.0]
[1673597427467,9.76457299,1407.8,1407.6,3.0]
[1673597427629,2.76024299,1407.8,1407.6,3.0]
[1673597427979,2.66124299,1407.8,1407.6,3.0]
[1673597428614,9.76452299,1407.8,1407.6,3.0]
[1673597428830,9.86352299,1407.8,1407.6,3.0]
[1673597433176,2.76024299,1407.8,1407.6,21.03270895]
[1673597433381,2.66124299,1407.8,1407.6,22.98233645]
[1673597437427,2.66124299,1407.8,1407.6,15.87804645]
[1673597439650,2.66124299,1407.8,1407.6,8.77377645]
[1673597439987,2.66124299,1407.8,1407.6,4.9496275]
[1673597440196,2.66124299,1407.8,1407.5,35.24127951]
[1673597440407,2.66124299,1407.8,1407.6,1.76218876]
[1673597440620,2.66124299,1407.8,1407.6,8.86628876]
[1673597440941,2.66124299,1407.8,1407.6,9.0537275]
[1673597441155,2.66124299,1407.8,1407.6,14.20839]
[1673597441536,2.66124299,1407.8,1407.6,21.31268]
[1673597441759,2.66124299,1407.8,1407.6,23.2623075]
[1673597442683,1.0644972,1407.7,1407.6,23.2623075]
[1673597442902,1.0644972,1407.7,1407.6,29.46027454]
[1673597443110,1.06074944,1407.7,1407.6,29.46027454]
[1673597444379,1.06074944,1407.7,1407.6,23.07488461]
[1673597446210,8.16452944,1407.7,1407.5,3.47904792]
[1673597446393,8.88427785,1407.6,1407.5,1.40129212]
[1673597446723,6.60586369,1407.6,1407.5,1.40129212]
[1673597446935,13.11189653,1407.6,1407.5,1.40129212]
[1673597447461,12.50760159,1407.6,1407.5,1.40129212]
[1673597447771,10.37898291,1407.6,1407.5,1.40129212]
[1673597449043,17.48327291,1407.6,1407.5,1.40129212]
[1673597449939,19.62645214,1407.6,1407.5,1.40129212]
[1673597450380,17.49783346,1407.6,1407.5,1.40129212]
[1673597453101,18.56117444,1407.6,1407.5,1.40129212]
[1673597454597,11.45688444,1407.6,1407.5,1.40129212]
[1673597454808,17.49783346,1407.6,1407.5,1.40129212]
[1673597455187,24.60212346,1407.6,1407.5,1.40129212]
[1673597455393,26.31832504,1407.6,1407.5,1.40129212]
[1673597455604,18.15088774,1407.6,1407.5,1.40129212]
[1673597455885,17.49783346,1407.6,1407.5,1.40129212]
[1673597456449,25.66507409,1407.6,1407.5,1.40129212]
[1673597456690,26.31812837,1407.6,1407.5,1.40129212]
[1673597458708,19.21383837,1407.6,1407.5,1.40129212]
[1673597459606,17.61709258,1407.6,1407.5,1.40129212]
[1673597460246,16.9640383,1407.6,1407.5,1.40129212]
[1673597460457,24.0683283,1407.6,1407.5,1.40129212]
[1673597460909,26.31812837,1407.6,1407.5,1.40129212]
[1673597461613,25.25517774,1407.6,1407.5,1.40129212]
[1673597462477,26.3177757,1407.6,1407.5,1.40129212]
[1673597463077,26.3177757,1407.6,1407.5,1.39879837]
[1673597463334,33.4220657,1407.6,1407.5,1.39879837]
[1673597463660,26.3177757,1407.6,1407.5,1.39879837]
[1673597464805,25.66472142,1407.6,1407.5,1.39879837]
[1673597465016,26.31413752,1407.6,1407.5,1.39879837]
[1673597468674,24.71739173,1407.6,1407.5,1.39879837]
[1673597468902,33.41842752,1407.6,1407.5,1.39879837]
[1673597471501,26.31413752,1407.6,1407.5,1.39879837]
[1673597471700,33.41842752,1407.6,1407.5,1.39879837]
[1673597471918,42.46734756,1407.6,1407.5,1.39879837]
[1673597472123,42.69428357,1407.6,1407.5,1.39879837]
[1673597472381,42.72866028,1407.6,1407.5,1.39879837]
[1673597472598,41.13497177,1407.6,1407.5,1.39879837]
[1673597472803,44.13497177,1407.6,1407.5,1.39879837]
[1673597473173,46.78919317,1407.6,1407.5,1.39879837]
[1673597473435,44.13497177,1407.6,1407.5,1.39879837]
[1673597474605,46.78919317,1407.6,1407.5,1.39879837]
[1673597475191,44.13497177,1407.6,1407.5,1.39879837]
[1673597475547,52.75839056,1407.6,1407.5,0.69850372]
[1673597475723,52.67049653,1407.6,1407.5,0.69850372]
[1673597476371,63.59209216,1407.6,1407.5,0.69850372]
[1673597477926,63.59209216,1407.6,1407.3,0.08665618]
[1673597478260,16.86728295,1407.4,1407.3,0.08665618]
[1673597478520,17.61933723,1407.4,1407.3,0.08665618]
[1673597478667,16.96628295,1407.4,1407.3,0.08665618]
[1673597479086,29.59948295,1407.4,1407.3,0.08665618]
[1673597479330,30.25253723,1407.4,1407.3,0.08665618]
[1673597479546,35.50082078,1407.4,1407.3,0.08665618]
[1673597480089,34.4381476,1407.4,1407.3,0.08665618]
[1673597480395,36.56349396,1407.4,1407.3,0.08665618]
[1673597480552,36.56376199,1407.4,1407.3,0.08665618]
[1673597481514,34.43841563,1407.4,1407.3,0.08665618]
[1673597481746,35.50120382,1407.4,1407.3,0.08665618]
[1673597482501,35.50150831,1407.4,1407.3,0.08665618]
[1673597482889,34.43841563,1407.4,1407.3,0.08665618]
[1673597483706,36.56376199,1407.4,1407.3,0.08665618]
[1673597484381,34.96948419,1407.4,1407.3,0.08665618]
[1673597485125,36.56464858,1407.4,1407.3,0.08665618]
[1673597485867,40.1709813,1407.4,1407.3,0.08665618]
[1673597486087,38.57581691,1407.4,1407.3,0.08665618]
[1673597486281,40.17076167,1407.4,1407.3,0.08665618]
[1673597486504,38.57581691,1407.4,1407.3,0.08665618]
[1673597487213,40.17098874,1407.4,1407.3,0.08665618]
[1673597488550,45.68111691,1407.4,1407.3,0.08665618]
[1673597490120,50.04241004,1407.4,1407.3,0.08665618]
[1673597490329,56.77126737,1407.4,1407.3,0.08665618]
[1673597490786,69.97773737,1407.4,1407.3,0.08665618]
[1673597491494,69.97773737,1407.4,1407.3,0.04470363]
[1673597492662,70.44791061,1407.4,1407.3,0.04470363]
[1673597499005,62.24262639,1407.4,1407.3,0.04470363]
[1673597499245,59.58840499,1407.4,1407.3,0.04470363]
[1673597501052,60.95288942,1407.4,1407.3,0.04470363]
[1673597502365,59.35840499,1407.4,1407.3,0.04470363]
[1673597503521,60.95308035,1407.4,1407.3,0.04470363]
[1673597504788,59.35840499,1407.4,1407.3,0.04470363]
[1673597505350,60.95334595,1407.4,1407.3,0.04470363]
[1673597506280,59.35840499,1407.4,1407.3,0.04470363]
[1673597508776,67.98222533,1407.4,1407.3,0.04470363]
[1673597511307,50.24300463,1407.4,1407.3,0.04470363]
[1673597511990,57.27048766,1407.4,1407.3,0.04470363]
[1673597512680,64.37578766,1407.4,1407.3,0.04470363]
[1673597512889,57.27048766,1407.4,1407.3,0.04470363]
[1673597513987,64.37578766,1407.4,1407.3,0.04470363]
[1673597514163,57.27048766,1407.4,1407.3,0.04470363]
[1673597514517,57.27048766,1407.4,1407.3,0.04234184]
[1673597514831,64.37578766,1407.4,1407.3,0.04234184]
[1673597516623,62.24979646,1407.4,1407.3,0.04234184]
[1673597516784,55.14449646,1407.4,1407.3,0.04234184]
[1673597517683,62.24979646,1407.4,1407.3,0.04234184]
[1673597517833,55.14449646,1407.4,1407.3,0.04234184]
[1673597520883,62.24979646,1407.4,1407.3,0.04234184]
[1673597521341,55.14449646,1407.4,1407.3,0.04234184]
[1673597523225,62.24979646,1407.4,1407.3,0.04234184]
[1673597523975,55.14449646,1407.4,1407.3,0.04234184]
[1673597526131,57.27426978,1407.4,1407.3,0.04234184]
[1673597526594,40.40227084,1407.4,1407.3,0.04234184]
[1673597526787,17.61679567,1407.4,1407.3,0.04234184]
[1673597527025,16.96374139,1407.4,1407.3,0.04234184]
[1673597527428,14.83396807,1407.4,1407.3,0.04234184]
[1673597527660,16.96374139,1407.4,1407.3,0.04234184]
[1673597527840,14.83396807,1407.4,1407.3,0.04234184]
[1673597528277,2.20076807,1407.4,1407.3,0.76364812]
[1673597528473,1.56907486,1407.4,1407.3,5.12274854]
[1673597528699,1.56907486,1407.4,1407.3,13.99112739]
[1673597528931,1.56907486,1407.4,1407.3,16.7378167]
[1673597529251,0.47017324,1407.4,1407.3,16.7378167]
[1673597529463,0.47017324,1407.4,1407.3,22.08104812]
[1673597529633,0.47017324,1407.4,1407.3,23.84352014]
[1673597529842,0.47017324,1407.4,1407.3,28.2030563]
[1673597530112,0.47017324,1407.4,1407.3,23.84352014]
[1673597533873,0.47017324,1407.4,1407.3,22.08104812]
[1673597534241,0.47017324,1407.4,1407.3,23.84352673]
[1673597534772,0.47017324,1407.4,1407.3,22.08104812]
[1673597535995,0.47017324,1407.4,1407.3,22.0788021]
[1673597542194,0.47017324,1407.4,1407.3,23.84124921]
[1673597542911,0.47017324,1407.4,1407.3,22.0788021]
[1673597546648,0.47017324,1407.4,1407.3,23.84122975]
[1673597546855,0.47017324,1407.4,1407.3,22.0788021]
[1673597548069,0.47017324,1407.4,1407.3,23.84121951]
[1673597550286,0.47017324,1407.4,1407.3,27.44755223]
[1673597551594,0.47017324,1407.4,1407.3,25.68513482]
[1673597553275,0.46759581,1407.4,1407.3,22.0788021]
[1673597554847,0.46759581,1407.4,1407.3,23.84119131]
[1673597555073,0.46759581,1407.4,1407.3,27.44752403]
[1673597555258,3.29038612,1407.8,1407.4,3.09621523]
[1673597555259,0.099,1407.8,1407.4,3.09621523]
[1673597555430,12.88835645,1408.1,1407.5,33.08444724]
[1673597555646,12.88835645,1408.1,1407.6,11.67716665]
[1673597555999,12.88835645,1408.1,1407.7,24.91692272]
[1673597556000,11.29113162,1408.1,1407.7,24.91692272]
[1673597556163,11.29113162,1408.1,1407.8,2.0]
[1673597556383,11.29113162,1408.1,1407.9,14.20554]
[1673597557735,10.2266,1408.1,1407.9,14.20554]
[1673597557898,10.2266,1408.1,1407.9,16.09525682]
[1673597558065,10.2266,1408.1,1407.9,23.19802682]
[1673597558276,11.29113162,1408.1,1407.9,23.19802682]
[1673597558488,10.2266,1408.1,1407.9,23.19802682]
[1673597559650,0.099,1408.1,1407.9,26.80435954]
[1673597559865,25.22356067,1408.2,1408.0,0.72130628]
[1673597560091,25.22356067,1408.2,1408.0,14.92529628]
[1673597560422,24.59513367,1408.2,1408.0,14.92529628]
[1673597560734,24.59513367,1408.2,1408.0,22.02756628]
[1673597560923,24.59513367,1408.2,1408.1,9.30451663]
[1673597561735,15.04053367,1408.2,1408.1,7.10176]
[1673597566166,16.6377585,1408.2,1408.1,7.10176]
[1673597568183,15.57322688,1408.2,1408.0,14.26992]
[1673597568358,1.06049145,1408.1,1408.0,21.30599]
[1673597569354,16.63371833,1408.2,1408.0,21.30599]
[1673597575834,15.0364935,1408.2,1408.0,21.30599]
[1673597577817,15.0364935,1408.2,1408.0,21.30339872]
[1673597578487,16.63371833,1408.2,1407.9,16.16097682]
[1673597578818,16.63371833,1408.2,1407.9,21.30802]
[1673597579182,16.63371833,1408.2,1407.9,14.20526]
[1673597579437,1.06049145,1408.1,1407.9,14.20526]
[1673597580422,27.66414533,1408.2,1407.9,21.30803]
[1673597580608,27.03571833,1408.2,1407.9,21.30803]
[1673597580764,1.06049145,1408.1,1407.9,21.30803]
[1673597581091,1.06049145,1408.1,1407.9,24.160747]
[1673597584665,0.41750673,1408.0,1407.9,24.160747]
[1673597593423,1.47799818,1408.0,1407.9,25.92257401]
[1673597594263,1.47799818,1408.0,1407.9,25.92259972]
[1673597596569,1.47799818,1408.0,1407.9,29.52893244]
[1673597596764,0.41750673,1408.0,1407.9,30.58828696]
[1673597598345,0.41750673,1408.0,1407.9,29.52893244]
[1673597599152,0.41750673,1408.0,1407.9,30.58828696]
[1673597600687,0.41750673,1408.0,1407.9,29.52893244]
[1673597601822,0.41750673,1408.0,1407.9,30.58828696]
[1673597603494,0.41750673,1408.0,1407.9,29.52893244]
[1673597603781,0.41750673,1408.0,1407.9,30.58828696]
[1673597604027,0.41750673,1408.0,1407.9,29.52893244]
[1673597607092,0.41750673,1408.0,1407.9,31.53053925]
[1673597607457,0.41750673,1408.0,1407.9,29.52893244]
[1673597610825,0.41750673,1408.0,1407.9,31.53053925]
[1673597611175,0.41750673,1408.0,1407.9,29.52893244]
[1673597612648,0.41750673,1408.0,1407.9,31.53053925]
[1673597612968,0.41750673,1408.0,1407.9,29.52893244]
[1673597614221,0.41750673,1408.0,1407.9,31.53053925]
[1673597614456,0.41750673,1408.0,1407.9,29.52893244]
[1673597625655,0.41750673,1408.0,1407.9,30.58828696]
[1673597632302,0.41750673,1408.0,1407.9,32.58989377]
[1673597632514,0.41750673,1408.0,1407.9,30.58828696]
[1673597635760,0.41750673,1408.0,1407.9,32.58989377]
[1673597635955,0.41750673,1408.0,1407.9,30.58828696]
[1673597638075,0.41750673,1408.0,1407.9,32.58989377]
[1673597638314,0.41750673,1408.0,1407.9,30.58828696]
[1673597639920,0.41750673,1408.0,1407.9,32.17731874]
[1673597640136,0.41750673,1408.0,1407.9,30.58828696]
[1673597640271,0.41750673,1408.0,1407.9,32.17731874]
[1673597640480,0.41750673,1408.0,1407.9,30.58828696]
[1673597646819,0.41750673,1408.0,1407.9,9.28025696]
[1673597647034,0.41750673,1408.0,1407.9,20.63277996]
[1673597647217,0.41750673,1408.0,1407.9,27.73554996]
[1673597651806,0.41504798,1408.0,1407.9,27.73554996]
[1673597653765,3.9024002,1408.2,1407.9,27.73554996]
[1673597653967,0.09766135,1408.4,1408.2,2.7414421]
[1673597654178,0.09766135,1408.4,1408.3,46.0182093]
[1673597654388,0.09766135,1408.4,1408.3,48.01981611]
[1673597655275,0.09766135,1408.4,1408.3,46.95023875]
[1673597655467,0.09766135,1408.4,1408.3,48.00983228]
[1673597655678,0.09766135,1408.4,1408.3,46.95223875]
[1673597655901,0.09766135,1408.4,1408.3,48.00789613]
[1673597656115,0.09766135,1408.4,1408.3,46.95023875]
[1673597657122,0.09766135,1408.4,1408.3,46.4201995]
[1673597658642,0.09766135,1408.4,1408.3,48.00660203]
[1673597658839,0.09766135,1408.4,1408.3,46.4201995]
[1673597661261,0.09766135,1408.4,1408.3,46.07432394]
[1673597661861,0.09766135,1408.4,1408.3,34.75581737]
[1673597662108,0.09766135,1408.4,1408.3,32.99596465]
[1673597662315,0.09766135,1408.4,1408.3,32.99396465]
[1673597663606,0.09766135,1408.4,1408.3,35.99396465]
[1673597665488,0.09766135,1408.4,1408.3,35.28347693]
[1673597666811,0.09766135,1408.4,1408.3,35.00933272]
[1673597674184,0.09766135,1408.4,1408.3,24.30225]
[1673597676269,1.51666135,1408.4,1408.2,17.0096521]
[1673597676479,1.51666135,1408.4,1408.2,16.9436521]
[1673597676724,3.06868685,1408.4,1408.2,16.9436521]
[1673597677649,1.51666135,1408.4,1408.2,16.9436521]
[1673597679993,1.51666135,1408.4,1408.2,16.9456521]
[1673597680167,1.51666135,1408.4,1408.2,16.9436521]
[1673597682050,0.09766135,1408.4,1408.2,16.9436521]
[1673597683583,7.19793135,1408.4,1408.2,2.7414421]
[1673597683733,0.75416313,1408.3,1408.2,2.73749965]
[1673597683944,7.85491313,1408.3,1408.2,2.73749965]
[1673597684259,15.05466313,1408.3,1408.2,2.73749965]
[1673597686295,15.06922368,1408.3,1408.2,2.73749965]
[1673597691927,7.96847368,1408.3,1408.2,2.73749965]
[1673597693143,0.13337,1408.3,1408.2,9.83875965]
[1673597693453,0.03437,1408.3,1408.2,16.94001965]
[1673597696785,1.45337,1408.3,1408.2,16.94001965]
[1673597697045,1.45337,1408.3,1408.2,2.73749965]
[1673597697264,18.63109568,1408.3,1408.2,2.73749965]
[1673597697572,18.72709568,1408.3,1408.2,2.73749965]
[1673597697763,11.62934568,1408.3,1408.2,2.73749965]
[1673597697975,4.52859568,1408.3,1408.2,2.73749965]
[1673597698151,4.42959568,1408.3,1408.2,2.73749965]
[1673597698695,11.53034568,1408.3,1408.2,2.73749965]
[1673597699052,11.62934568,1408.3,1408.2,2.73749965]
[1673597703234,12.69388612,1408.3,1408.2,2.73749965]
[1673597706462,13.22753061,1408.3,1408.2,2.73749965]
[1673597706668,12.69388612,1408.3,1408.2,2.73749965]
[1673597707355,13.22766303,1408.3,1408.2,2.73749965]
[1673597709251,13.22774051,1408.3,1408.2,2.73749965]
[1673597709411,12.69388612,1408.3,1408.2,2.73749965]
[1673597710284,13.22775505,1408.3,1408.2,2.73749965]
[1673597710711,0.13337,1408.3,1408.2,2.73749965]
[1673597710899,0.03437,1408.3,1408.2,9.83875965]
[1673597711090,0.03437,1408.3,1408.2,7.10126]
[1673597712188,0.03437,1408.3,1408.2,8.31372619]
[1673597712567,0.03437,1408.3,1408.2,10.57197981]
[1673597712814,0.03437,1408.3,1408.2,17.67323981]
[1673597713006,0.03437,1408.3,1408.2,19.43461558]
[1673597713215,0.03437,1408.3,1408.2,17.67323981]
[1673597713570,0.03437,1408.3,1408.2,24.77449981]
[1673597713724,0.03437,1408.3,1408.2,26.53590362]
[1673597715113,0.03437,1408.3,1408.2,30.14223634]
[1673597715310,9.62140205,1408.5,1408.4,21.30075]
[1673597715516,9.62140205,1408.5,1408.4,36.6705237]
[1673597715517,9.72040205,1408.5,1408.4,36.6705237]
[1673597715760,9.72040205,1408.5,1408.4,45.86008556]
[1673597715937,9.72040205,1408.5,1408.4,41.65783143]
[1673597716167,9.72040205,1408.5,1408.4,44.50864674]
[1673597716375,9.72040205,1408.5,1408.4,43.97814809]
[1673597718369,9.72040205,1408.5,1408.4,42.92115772]
[1673597720397,0.09766135,1408.6,1408.5,4.19589707]
[1673597720564,0.09766135,1408.6,1408.5,41.45875407]
[1673597721303,0.09766135,1408.6,1408.5,31.31368774]
[1673597723540,0.09766135,1408.6,1408.5,27.70735502]
[1673597723821,1.51666135,1408.6,1408.5,1.21220795]
[1673597724422,1.5312219,1408.6,1408.5,1.21220795]
[1673597726625,1.5312219,1408.6,1408.3,7.1556146]
[1673597727423,1.5312219,1408.6,1408.3,7.1576146]
[1673597727635,1.5312219,1408.6,1408.3,7.1556146]
[1673597727987,1.5312219,1408.6,1408.3,14.2563646]
[1673597728239,2.72283034,1408.6,1408.3,14.2563646]
[1673597729513,31.05384847,1408.6,1408.3,0.0549146]
[1673597729727,31.15284847,1408.6,1408.3,0.0549146]
[1673597729881,31.67580425,1408.6,1408.3,0.0549146]
[1673597730087,5.16758042,1408.5,1408.3,0.0549146]
[1673597730358,20.52990246,1408.5,1408.3,0.0549146]
[1673597730511,2.0,1408.4,1408.3,0.0549146]
[1673597735571,27.63004246,1408.5,1408.3,0.0549146]
[1673597735782,2.0,1408.4,1408.3,0.0549146]
[1673597736351,4.02611376,1408.4,1408.3,0.0549146]
[1673597737236,1.16235204,1408.5,1408.3,7.1556646]
[1673597737497,1.06335204,1408.5,1408.3,14.2564146]
[1673597737662,1.16101339,1408.6,1408.3,14.2564146]
[1673597738094,1.16101339,1408.6,1408.3,21.3571646]
[1673597738300,0.09766135,1408.6,1408.3,27.10581378]
[1673597738512,0.09766135,1408.6,1408.3,27.8163015]
[1673597738719,0.09766135,1408.6,1408.3,27.10581378]
[1673597744522,0.09766135,1408.6,1408.4,2.0]
[1673597744730,0.09766135,1408.6,1408.5,0.2]
[1673597744909,0.09766135,1408.6,1408.5,21.49925]
[1673597750183,0.09766135,1408.6,1408.5,25.10558272]
[1673597755877,0.09440421,1408.6,1408.5,25.10558272]
[1673597760387,0.09440421,1408.6,1408.5,28.10558272]
[1673597761865,0.09440421,1408.6,1408.5,35.91682184]
[1673597762110,0.09440421,1408.6,1408.5,38.03974857]
[1673597762320,0.09440421,1408.6,1408.5,39.62723759]
[1673597762871,0.646473,1408.6,1408.5,39.62723759]
[1673597763028,0.646473,1408.6,1408.5,38.57024722]
[1673597763344,0.646473,1408.6,1408.5,39.62772921]
[1673597763554,0.12369048,1408.7,1408.6,3.04629237]
[1673597763813,0.12369048,1408.7,1408.6,41.99390934]
[1673597764028,0.12369048,1408.7,1408.6,44.82732379]
[1673597764390,0.12369048,1408.7,1408.6,46.41481281]
[1673597764648,0.12369048,1408.7,1408.6,44.82732379]
[1673597766070,0.12369048,1408.7,1408.6,46.41481281]
[1673597766715,0.12369048,1408.7,1408.6,44.82732379]
[1673597767913,0.12369048,1408.7,1408.6,46.41481281]
[1673597768124,0.12369048,1408.7,1408.6,54.05791281]
[1673597768446,0.12369048,1408.7,1408.6,52.47042379]
[1673597769252,4.8e-07,1408.7,1408.6,52.47042379]
[1673597769511,0.12181952,1408.9,1408.7,2.0]
[1673597769707,0.12181952,1408.9,1408.8,32.19925272]
[1673597769917,0.12181952,1408.9,1408.8,37.16855003]
[1673597770251,0.12181952,1408.9,1408.8,40.16855003]
[1673597770830,0.12181952,1408.9,1408.8,45.07022006]
[1673597771043,0.12181952,1408.9,1408.8,44.01549631]
[1673597771264,0.12181952,1408.9,1408.8,44.01349631]
[1673597773594,0.12181952,1408.9,1408.8,44.01289925]
[1673597776632,0.12181952,1408.9,1408.8,41.92882093]
[1673597777029,0.12181952,1408.9,1408.8,44.01204312]
[1673597777243,0.12181952,1408.9,1408.8,41.92882093]
[1673597777453,0.12181952,1408.9,1408.8,44.01203431]
[1673597777905,0.12181952,1408.9,1408.8,44.01184831]
[1673597778328,0.12181952,1408.9,1408.8,44.01185553]
[1673597778505,0.12181952,1408.9,1408.8,41.92882093]
[1673597778720,0.20400226,1409.0,1408.9,2.07248293]
[1673597778962,0.20400226,1409.0,1408.9,34.9252768]
[1673597779173,0.20400226,1409.0,1408.9,38.63576452]
[1673597780018,0.20400226,1409.0,1408.9,32.38065646]
[1673597780967,0.20400226,1409.0,1408.9,31.67016874]
[1673597781342,0.20400226,1409.0,1408.9,35.92779953]
[1673597781552,0.20400226,1409.0,1408.9,36.63828725]
[1673597789216,1.62300226,1409.0,1408.9,27.97200565]
[1673597789534,1.62300226,1409.0,1408.9,24.97200565]
[1673597790580,1.62300226,1409.0,1408.9,17.87427565]
[1673597791264,1.62300226,1409.0,1408.9,13.77654565]
[1673597792648,1.62300226,1409.0,1408.9,20.87427565]
[1673597794929,0.20400226,1409.0,1408.9,20.87427565]
[1673597795189,0.20400226,1409.0,1408.9,31.48559722]
[1673597795376,0.20400226,1409.0,1408.9,27.97200565]
[1673597799667,0.20102083,1409.0,1408.9,27.97200565]
[1673597800538,0.20102083,1409.0,1408.9,29.73245511]
[1673597805856,0.20102083,1409.0,1408.9,29.65997218]